Cogmind - Beta 16.1 @@@ ROGUE MODE // 2026.01.20 @ 12:19:53 Player: Selene Result: Destroyed by D-53 Grenadier with Mini Grenade Launcher Performance ------------- Evolutions (0) 0 Regions Visited (2) 400 Robots Destroyed (22) 110 Value Destroyed (388) 388 Prototype IDs (2) 40 Alien Tech Used (0) 0 Bonus (0) 0 TOTAL SCORE: 938 Bonus ------- None Cogmind --------- Core Integrity 0/250 Matter 210/300 Energy 246/250 System Corruption 0% Temperature Cool (0) Movement Treading (160) Location -10/Mines Parts ------- > --- POWER (1) -------- Ion Engine > --- PROPULSION (2) --- Light Treads Light Treads > --- UTILITY (2) ------ Large Storage Unit Seismic Detector > --- WEAPON (2) ------- Assault Rifle > --- INVENTORY (15) --- Light Ion Engine Light Nuclear Core Huge Storage Unit Large Matter Pod (119) Structural Scanner Sensor Array Improved Terrain Scanner Core Shielding Particle Gun Light Assault Rifle Light Assault Rifle Light Assault Rifle Light Assault Rifle Mining Laser Peak State ------------ > --- POWER ------------ Light Nuclear Core > --- PROPULSION ------- Light Treads Light Treads > --- UTILITY ---------- Large Storage Unit Seismic Detector > --- WEAPON ----------- Light Assault Rifle Light Assault Rifle > --- INVENTORY -------- Huge Storage Unit Medium Matter Pod Structural Scanner Sensor Array Improved Terrain Scanner Medium Laser Particle Gun Light Assault Rifle Light Assault Rifle Light Assault Rifle Light Assault Rifle Light Assault Rifle Light Assault Rifle Light Cannon [Rating: 10] Favorites ----------- Power Light Nuclear Core Engine Light Ion Engine Power Core Light Nuclear Core Propulsion Light Treads Treads Light Treads Utility Seismic Detector Device Seismic Detector Storage Large Storage Unit Weapon Light Assault Rifle Ballistic Gun Light Assault Rifle Launcher Grenade Launcher Special Weapon Mining Laser Build | -11 -10 -10 ------- Run | Yrd Mat Min Slots Evolved . | . . . Power . | . . . Propulsion . | . . . Utility . | . . . Weapon . | . . . Parts Attached 19 | 7 9 3 Power 4 | 1 2 1 Engine 3 | 1 1 1 Core 1 | . 1 . Reactor . | . . . Propulsion 4 | 2 1 1 Treads 4 | 2 1 1 Leg . | . . . Wheel . | . . . Hover . | . . . Flight . | . . . Utility 3 | 2 1 . Device 1 | 1 . . Storage 2 | 1 1 . Processor . | . . . Hackware . | . . . Protection . | . . . Artifact . | . . . Weapon 8 | 2 5 1 Energy Gun . | . . . Energy Cannon . | . . . Ballistic Gun 6 | 2 4 . Ballistic Cannon . | . . . Launcher 1 | . . 1 Special Weapon 1 | . 1 . Impact Weapon . | . . . Slashing Weapon . | . . . Piercing Weapon . | . . . Special Melee Weapon . | . . . Unidentified Prototypes . | . . . Parts Lost 5 | . 3 2 Power 2 | . 2 . Propulsion 2 | . 1 1 Utility . | . . . Weapon 1 | . . 1 Highest Loss Streak 2 | . 1 2 To Critical Strikes . | . . . Average Backups 13 | 1 13 14 Power . | . . 1 Propulsion . | . . . Utility 4 | . 4 6 Weapon 7 | . 7 6 Tool/Special . | . . . Unused Backups 19 | . 7 12 Power 1 | . . 1 Propulsion . | . . . Utility 7 | . 1 6 Weapon 11 | . 6 5 Tool/Special . | . . . Average Slot Usage (%) 98 | . 97 99 Engine 6 | . 6 10 Core 7 | . 7 3 Treads 26 | . 26 27 Device 14 | . 14 14 Storage 14 | . 14 14 Ballistic Gun 27 | . 27 26 Peak Build Rating 10 | 7 10 10 Average Rating 8 | 5 8 9 On Entrance 5 | . 7 10 Avg Prop Armor Cover (%) . | . . . Naked Turns . | . . . Heaviest Build 31 | 11 29 31 Greatest Support 40 | 40 40 40 Greatest Overweight (x) 1 | . 1 . Average Overweight (x) . | . . . Largest Inventory Capacity 15 | 8 15 15 Average Capacity 14 | 7 14 15 Most Carried 15 | 3 15 15 Average Carried 13 | 1 13 14 Final Capacity 15 | 8 15 15 Final Carried 15 | 3 15 14 Class Distribution -------------------- 100% | Mutant Dominant Class ---------------- Mutant | -10/Materials Mutant | -10/Mines Resources | -11 -10 -10 ----------- Run | Yrd Mat Min Matter Collected 734 | 283 406 45 Remotely . | . . . Salvage Created 675 | 56 600 19 Parts 36 | 8 28 . Haulers Intercepted 2 | . 2 . Recyclers Shooed 4 | 1 3 . Parts Field Recycled . | . . . Retrieved Matter . | . . . Parts Self-Destructed . | . . . Prevented . | . . . Parts Restored . | . . . Kills | -11 -10 -10 ------- Run | Yrd Mat Min Combat Hostiles Destroyed 24 | . 13 11 Guns 13 | . 13 . AOE 11 | . . 11 Classes Destroyed 8 | 1 6 1 Worker 1 | . 1 . Tunneler 3 | 3 . . Hauler 2 | . 2 . Recycler 1 | . 1 . Watcher 2 | . 2 . Swarmer 6 | . 6 . Grunt 7 | . 7 . Assembled 11 | . . 11 Best Kill Streak 11 | 2 3 11 Combat Bots Only 11 | . 3 11 Max Kills in Single Turn 3 | 1 1 3 Gunslinging . | . . . Exploded 3 | . . 3 Melee . | . . . Uniques/NPCs Destroyed . | . . . Combat | -11 -10 -10 -------- Run | Yrd Mat Min Hostile Shots Fired 106 | . 87 19 Missed 35 | . 28 7 Hits 71 | . 59 12 Projectile 71 | . 59 12 AOE 4 | . . 4 Critical Strikes 1 | . 1 . Damage Taken 937 | . 662 275 Core 274 | . 177 97 Absorbed by Shields . | . . . Core Remaining (%) 100 | 100 . . Volleys Fired 101 | 12 82 7 Largest 2 | 2 2 1 Hottest 100 | 40 100 30 Shots Fired 192 | 24 161 7 Gun 182 | 24 158 . Cannon . | . . . Launcher 7 | . . 7 Special 3 | . 3 . Kinetic 182 | 24 158 . Thermal 3 | . 3 . Explosive 7 | . . 7 Electromagnetic . | . . . Robot Hit Streak 15 | 5 15 5 Robot Miss Streak 5 | 3 5 1 Penetration Max . | . . . Secondary Targets 1 | . 1 . Max Gunslinging Chain 1 | . 1 . Shots Hit Robots 110 | 15 90 5 Core Hits 66 | 5 38 23 Critical Kills . | . . . Critical Parts Destroyed . | . . . Critical Strikes . | . . . Melee Attacks . | . . . Impact . | . . . Slashing . | . . . Piercing . | . . . Sneak Attacks . | . . . Combat Hostiles . | . . . Follow-up Attacks . | . . . Damage Inflicted 1691 | 130 850 711 Guns 964 | 130 834 . Cannons . | . . . Explosions 711 | . . 711 Melee . | . . . Ramming 16 | . 16 . Kinetic 964 | 130 834 . Thermal . | . . . Explosive 711 | . . 711 Electromagnetic . | . . . Impact . | . . . Slashing . | . . . Piercing . | . . . Highest Corruption . | . . . Average Corruption . | . . . Corruption Purged . | . . . Corruption Blocked . | . . . Overload Shots . | . . . Overflow Damage 13 | . . 13 Projectiles . | . . . Explosions 13 | . . 13 Melee . | . . . Knockbacks . | . . . Impact . | . . . Kinetic . | . . . Secondary . | . . . Self-Inflicted Damage . | . . . Shots . | . . . Rammed 6 | . 6 . Targets Rammed 7 | . 7 . Kicked . | . . . Crushed 1 | . 1 . Highest Temperature 10 | . 10 . Average Temperature 2 | . 2 . Received Heat Transfer 216 | . 216 . Siege Activations . | . . . Martial Activations . | . . . Shielding Activations . | . . . Robots Disrupted . | . . . Combat Hostiles . | . . . Robots Corrupted . | . . . Combat Hostiles . | . . . Parts Fried . | . . . Impact Corruptions . | . . . Robots Melted . | . . . Combat Hostiles . | . . . Parts Melted . | . . . Heat Transferred . | . . . Parts Sabotaged . | . . . Parts Stolen . | . . . Parts Stripped . | . . . Power Chain Reactions . | . . . Alert | -11 -10 -10 ------- Run | Yrd Mat Min Maximum Alert Level . | . . . Low Security (%) 100 | 100 100 100 Level 1 . | . . . Level 2 . | . . . Level 3 . | . . . Level 4 . | . . . Level 5 . | . . . High Security . | . . . Max Security . | . . . Peak Influence 150 | 10 150 26 Initial 16 | . . 16 Average 30 | 1 34 3 Influence Increases 551 | 15 509 27 Destroy 0b10 Robot/C 260 | . 260 . Destroy 0b10 Robot/NC 45 | 15 30 . Destroy Leader 68 | . 68 . Successful Hack 43 | . 43 . Select Force Hacks 30 | . 30 . Destroy Structure 30 | . 3 27 Partial Spotted 15 | . 15 . Lose Combat Pursuer 60 | . 60 . Influence Decreases 551 | 15 466 70 Entered New Map 27 | . . 27 Time Decay 487 | 15 446 26 Lost Part 37 | . 20 17 Squads Dispatched 2 | . 2 . Investigation 1 | . 1 . Extermination . | . . . Reinforcement 1 | . 1 . Assault . | . . . Garrison . | . . . Intercept . | . . . Searches Triggered . | . . . Construction Impeded . | . . . Haulers Reinforced . | . . . Active Scanning Responses . | . . . Cargo Convoy Interrupts . | . . . Stealth | -11 -10 -10 --------- Run | Yrd Mat Min Distress Signals 2 | . 2 . Communications Jammed . | . . . Distress Signals . | . . . Times Spotted 48 | . 28 20 Peak Tracking Total 10 | . 3 10 Tactical Retreats 3 | . 3 . Traps | -11 -10 -10 ------- Run | Yrd Mat Min Traps Triggered 1 | . 1 . Indirectly . | . . . Trap Hack Attempts . | . . . Triggered . | . . . Disarmed . | . . . Reprogrammed . | . . . Reused . | . . . Traps Extracted . | . . . Installed . | . . . Triggered . | . . . Machines | -11 -10 -10 ---------- Run | Yrd Mat Min Machines Disabled . | . . . Max in Single Turn . | . . . Machines Repaired . | . . . Machines Dismantled . | . . . Machines Sabotaged . | . . . Overloaded Fab Kills . | . . . Hacking | -11 -10 -10 --------- Run | Yrd Mat Min Machines Accessed 9 | . 9 . Terminals 7 | . 7 . Fabricators . | . . . Repair Stations . | . . . Recycling Units 2 | . 2 . Scanalyzers . | . . . Garrison Access . | . . . Total Hacks 34 | . 34 . Successful 24 | . 24 . Failed 9 | . 9 . Catastrophic 1 | . 1 . Database Lockouts 1 | . 1 . Manual 16 | . 16 . Terminals 29 | . 29 . Fabricators . | . . . Repair Stations . | . . . Recycling Units 5 | . 5 . Scanalyzers . | . . . Garrison Access . | . . . Terminal Hacks 12 | . 12 . Record 2 | . 2 . Robot Analysis 2 | . 2 . Prototype ID Bank 1 | . 1 . Branch Access Points 1 | . 1 . Terminal Index 1 | . 1 . Alert Level 1 | . 1 . Locate Traps 2 | . 2 . Hauler Manifests 1 | . 1 . Zone Layout 1 | . 1 . Fabricator Hacks . | . . . Repair Station Hacks . | . . . Recycling Unit Hacks 2 | . 2 . Retrieve Components 2 | . 2 . Scanalyzer . | . . . Garrison Access Hacks . | . . . Unauthorized Hacks 10 | . 10 . Terminals 8 | . 8 . Botnet 2 | . 2 . Operators 1 | . 1 . Skim 5 | . 5 . Fabricators . | . . . Repair Stations . | . . . Recycling Units 2 | . 2 . Reject 1 | . 1 . Tunnel 1 | . 1 . Scanalyzers . | . . . Garrison Access . | . . . Data Cores Recovered . | . . . Used . | . . . Hacking Detections 8 | . 8 . Full Trace Events . | . . . Feedback Events . | . . . Feedback Blocked . | . . . Robot Schematics Acquired . | . . . Robots Built . | . . . Authchips . | . . . Time . | . . . Total Robot Build Rating . | . . . Part Schematics Acquired . | . . . Parts Built . | . . . Authchips . | . . . Time . | . . . Total Part Build Rating . | . . . Part Studies Acquired . | . . . Parts Repaired . | . . . Time . | . . . Parts Recycled . | . . . Recycled Matter . | . . . Retrieved Matter . | . . . Retrieved Components 12 | . 12 . Parts Scanalyzed . | . . . Part Schematics Acquired . | . . . Parts Damaged . | . . . Bothacking | -11 -10 -10 ------------ Run | Yrd Mat Min Used RIF Installer . | . . . Robots Hacked . | . . . Non-combat . | . . . Combat . | . . . Robot Hacks Applied . | . . . Relay Couplers Released . | . . . Fabnet Peak Effective % . | . . . Robots Rewired . | . . . Allies Hacked . | . . . Hacks Repelled . | . . . Allies | -11 -10 -10 -------- Run | Yrd Mat Min Total Allies . | . . . Largest Group . | . . . Highest-Rated Group . | . . . Highest-Rated Ally . | . . . Total Orders . | . . . Ally Attacks . | . . . Total Damage . | . . . Kills . | . . . Allies Corrupted . | . . . Allies Melted . | . . . Intel | -11 -10 -10 ------- Run | Yrd Mat Min Active Infowar (turns) 2653 | 46 2379 228 Seismic 2653 | 46 2379 228 Robot Analysis Total 2 | . 2 . Derelict Logs Recovered . | . . . Drone Launches . | . . . Drone Recoveries . | . . . Exploration | -11 -10 -10 ------------- Run | Yrd Mat Min Turns Passed 2728 | 121 2379 228 Spaces Moved 1085 | 51 905 129 Core 5 | 5 . . Treads 1080 | 46 905 129 Legs . | . . . Wheels . | . . . Hover . | . . . Flight . | . . . Fastest Speed 50 | 50 160 160 Average Speed 165 | 149 166 160 Slowest Speed 240 | 160 240 160 Overloaded Moves . | . . . Propulsion Burnouts . | . . . Robots Hopped . | . . . Potential Cave-ins . | . . . Cave-ins Triggered . | . . . Exploration Rate (%) 46 | 3 92 44 Regions Visited 2 Branch Regions 1 Pre-discovered Areas 3 | . 3 . Known Exits Taken 1 | . 1 . Unknown Exits Taken 1 | 1 . . Scrap Searched 1 | . . 1 Spaces Dug 1 | . 1 . Terrain Destroyed 47 | . 3 44 Melee . | . . . Projectile 3 | . 3 . AOE 44 | . . 44 Terrain Rammed . | . . . Walls Destroyed . | . . . Machines Disabled . | . . . Actions | -11 -10 -10 --------- Run | Yrd Mat Min Total 1853 | 74 1635 144 Wait 602 | 1 601 . Move 1083 | 50 904 129 Hop . | . . . Pick Up 27 | 4 21 2 Fast Attach 8 | 6 1 1 Attach 4 | 1 2 1 Detach . | . . . Swap 7 | . 6 1 Drop 14 | . 11 3 Fire 101 | 12 82 7 Melee . | . . . Ram . | . . . Kick . | . . . Crush 7 | . 7 . Escape Stasis . | . . . Rewire . | . . . Trap . | . . . Miscellaneous . | . . . Route ------- -11/Scrapyard -10/Materials (discovered 6 exits: *Mat x3 / *Min x2 / *Sub) -10/Mines (discovered 2 exits: *Mat x2) History --------- Turn | Location | Event 32 | -11/Scrapyard | Discovered new exit (range 16) 122 | -11/Scrapyard | Entered Materials 313 | -10/Materials | Build established: Mutant 486 | -10/Materials | Discovered new exit (range 9) 626 | -10/Materials | Discovered new exit (range 10) 654 | -10/Materials | Core integrity fell below 50% 717 | -10/Materials | Central database locked down 743 | -10/Materials | Discovered new exit (range 7) 916 | -10/Materials | Discovered new exit (range 11) 1233 | -10/Materials | Discovered new exit (range 13) 1263 | -10/Materials | Identified exit to Mines 1405 | -10/Materials | Learned location of Storage (-7) 1580 | -10/Materials | Learned location of 1 exit from Storage 1690 | -10/Materials | Loaded intel: 12 trap records 1796 | -10/Materials | Learned Storage trap positions 1863 | -10/Materials | Identified exit to Materials 1863 | -10/Materials | Identified exit to Subcaves 2501 | -10/Materials | Entered Mines 2683 | -10/Mines | Assembled infested the area 2726 | -10/Mines | Core integrity fell below 20% 2729 | -10/Mines | Destroyed by D-53 Grenadier with Mini Grenade Launcher Last Messages --------------- 02712_ as-52269 destroyed. 02714_ as-71889 destroyed. 02714_ as-31888 destroyed. 02714_ Destroyed Asb. Hover Unit. 02716_ The unstable cave ceiling collapses. 02716_ Destroyed Asb. Hover Unit. 02716_ as-43201 destroyed. 02717_ Lgt. Treads destroyed. 02718_ as-73592 destroyed. 02718_ as-42556 destroyed. 02718_ as-28984 destroyed. 02721_ The unstable cave ceiling collapses. 02721_ D-53 Grenadier unfolds itself. 02721_ as-78607 destroyed. 02721_ as-18186 destroyed. 02726_ as-47925 destroyed. 02726_ as-19323 destroyed. 02726_ as-16449 destroyed. 02726_ as-47066 destroyed. 02727_ Grenade Launcher destroyed. Map ----- +----------------------------------------------------+ | ?????????????????????????????????????# | | ?????????????????????????????????????## | | ??????????????????????????????????????## | | ????????????????????????